bitfinex-derivatives/quotes_SOLF0:USTF0_20250509
["timestamp","ask_amount","ask_price","bid_price","bid_amount"]
[1746790364299,82.47514577,172.73,172.55,5.6452]
[1746790364892,82.47514577,172.73,172.66,5.7925]
[1746790365093,1.9248,172.73,172.53,395.8509848]
[1746790365293,80.55034577,172.75,172.54,11.5927]
[1746790365489,18.25518837,172.72,172.43,458.92]
[1746790365696,5.7921,172.68,172.46,11.5986]
[1746790365994,1.15827879,172.67,172.49,80.25820452]
[1746790366193,1.15827879,172.67,172.49,80.255835]
[1746790366400,1.15827879,172.67,172.51,18.2517273]
[1746790366695,1.15827879,172.67,172.66,5.7923]
[1746790368296,1.15827879,172.67,172.55,458.92]
[1746790369188,1.15827879,172.67,172.66,5.7925]
[1746790370786,1.15827879,172.67,172.55,458.92]
[1746790371298,1.15827879,172.67,172.59,5.7946]
[1746790371299,5.7929,172.65,172.59,5.7946]
[1746790371594,1.15827879,172.67,172.53,1.929]
[1746790371797,5.7926,172.66,172.6,5.7943]
[1746790372098,1.15827879,172.67,172.45,1.9715]
[1746790372293,1.15827879,172.67,172.66,5.7925]
[1746790372500,1.15827879,172.67,172.49,11.5963]
[1746790372700,1.15827879,172.67,172.48,1.929]
[1746790372701,1.15827879,172.67,172.5,62.0]
[1746790372896,5.7942,172.62,172.56,5.7956]
[1746790373091,3.7461,172.66,172.56,5.7956]
[1746790373397,21.99849688,172.66,172.58,5.7952]
[1746790373699,21.99849688,172.66,172.48,1.929]
[1746790373900,23.15684276,172.66,172.48,1.929]
[1746790374101,23.15684276,172.66,172.54,5.7964]
[1746790374302,23.15684276,172.66,172.48,1.929]
[1746790374602,1.15841297,172.65,172.54,5.7964]
[1746790374803,1.15841297,172.65,172.45,1.9715]
[1746790375001,1.15841297,172.65,172.53,5.7967]
[1746790375002,5.7953,172.58,172.53,5.7967]
[1746790375202,1.15841297,172.65,172.45,1.9715]
[1746790375793,1.15841297,172.65,172.46,62.0]
[1746790376197,1.15841297,172.65,172.63,5.7935]
[1746790376402,1.15841297,172.65,172.49,18.2561041]
[1746790376602,1.15841297,172.65,172.52,11.5945]
[1746790376799,1.15841297,172.65,172.64,5.7932]
[1746790377296,101.76893213,172.74,172.64,0.06302947]
[1746790377503,107.50597603,172.74,172.73,5.7902]
[1746790377691,101.76893213,172.74,172.73,5.7902]
[1746790378297,1.7997,172.81,172.74,5.7899]
[1746790378504,7.5367439,172.81,172.61,2.1423911]
[1746790379305,7.5367439,172.81,172.62,62.0]
[1746790379514,5.7883,172.79,172.73,5.7899]
[1746790379706,7.5367439,172.81,172.63,2.15921171]
[1746790380101,5.7370439,172.81,172.63,2.15921171]
[1746790380495,5.7370439,172.81,172.8,5.7879]
[1746790380700,80.55034577,172.84,172.7,458.8]
[1746790381008,80.55034577,172.84,172.83,5.7869]
[1746790381202,86.28738967,172.84,172.83,5.7869]
[1746790381604,80.55034577,172.84,172.71,1.9614]
[1746790382007,80.55034577,172.84,172.71,4.11595435]
[1746790382207,80.55034577,172.84,172.83,5.7869]
[1746790383205,71.76394577,172.91,172.9,5.7845]
[1746790383513,71.76394577,172.91,172.77,64.14841157]
[1746790383809,71.76394577,172.91,172.78,2.14841157]
[1746790384005,71.76394577,172.91,172.9,5.7845]
[1746790384301,50.13044577,172.91,172.9,5.7845]
[1746790384703,135.23770078,172.92,172.91,5.7842]
[1746790385204,135.23770078,172.92,172.83,2.15082492]
[1746790385510,135.23770078,172.92,172.83,2.14990471]
[1746790385707,135.23770078,172.92,172.91,5.7842]
[1746790386108,483.45390078,173.05,172.82,458.62]
[1746790386305,483.45390078,173.05,172.83,2.15073073]
[1746790386706,357.0,173.02,172.83,2.15073073]
[1746790387004,18.2561041,173.0,172.76,62.0]
[1746790387205,5.7843,172.91,172.72,460.5669]
[1746790387401,5.7843,172.91,172.73,2.15426237]
[1746790387705,5.7864,172.85,172.79,5.7881]
[1746790387905,357.0,172.94,172.72,460.5669]
[1746790388104,357.0,172.93,172.73,2.15149245]
[1746790388305,357.0,172.93,172.73,2.15254703]
[1746790388508,1.8362,172.92,172.73,2.15254703]
[1746790388707,18.2561041,172.9,172.72,458.62]
[1746790388906,5.7877,172.81,172.74,5.7896]
[1746790389102,18.2561041,172.9,172.62,458.44]
[1746790389310,5.7897,172.75,172.69,5.7914]
[1746790389507,18.2561041,172.85,172.62,460.4126]
[1746790389706,18.2561041,172.85,172.63,2.15459295]
[1746790389907,5.7885,172.79,172.63,2.15459295]
[1746790390211,458.44,172.86,172.63,64.15121496]
[1746790390511,458.44,172.86,172.64,2.15121496]
[1746790390904,5.7883,172.79,172.63,2.15121496]
[1746790391099,458.44,172.86,172.63,2.15121496]
[1746790391303,18.2561041,172.85,172.63,2.15121496]
[1746790391506,5.7888,172.78,172.72,5.7905]
[1746790391810,18.2561041,172.85,172.63,2.15121496]
[1746790392006,5.7872,172.82,172.63,2.15121496]
[1746790392215,458.44,172.86,172.63,2.15121496]
[1746790392713,18.2561041,172.85,172.63,2.15581488]
[1746790392914,19.26653925,172.85,172.63,2.15716353]
[1746790393117,18.2561041,172.85,172.63,2.15716353]
[1746790394008,1.01051689,172.84,172.62,460.4126]
[1746790394208,1.01051689,172.84,172.63,2.15782295]
[1746790394522,458.44,172.86,172.64,2.15782295]
[1746790394814,3.8296,172.94,172.65,20.41392705]
[1746790395106,357.0,172.9,172.66,2.15782295]
[1746790395305,3.8296,172.94,172.7,18.2561041]
[1746790395507,3.8296,172.94,172.75,18.2561041]
[1746790395709,3.8296,172.94,172.76,462.50992295]
[1746790396002,3.8296,172.94,172.77,2.15509154]
[1746790396206,3.8296,172.94,172.76,460.3521]
[1746790396407,3.8296,172.94,172.76,458.48]
[1746790396606,18.2561041,172.93,172.67,1.8721]
[1746790396806,18.2561041,172.93,172.68,62.0]
[1746790397011,18.2561041,172.93,172.69,2.15719876]
[1746790397416,18.2561041,172.93,172.69,2.15652788]
[1746790397811,5.7848,172.9,172.69,2.15652788]
[1746790398015,3.8296,172.94,172.69,2.15652788]
[1746790398317,5.7845,172.9,172.69,2.15652788]
[1746790398513,3.8296,172.94,172.7,18.2561041]
[1746790398707,1.8724,172.94,172.75,18.2561041]
[1746790398914,1.8724,172.94,172.76,2.15652788]
[1746790399214,1.8724,172.94,172.77,2.15652788]
[1746790399418,1.8724,172.94,172.88,5.785]
[1746790399717,3.8219,173.01,172.8,18.2561041]
[1746790399913,1.8719,173.01,172.81,4.07552]
[1746790400113,1.8719,173.01,172.82,2.14932]
[1746790400413,1.8719,173.01,172.81,4.07552]
[1746790400618,1.8719,173.01,172.81,4.07460241]
[1746790401015,5.7842,172.91,172.81,7.7134]
[1746790401215,5.7842,172.91,172.81,1.9262]
[1746790402020,1.8719,173.01,172.81,1.9262]
[1746790402313,1.00948917,173.0,172.78,458.42]
[1746790403013,1.8719,173.01,172.79,2.15448718]
[1746790403212,5.7839,172.92,172.79,2.15448718]
[1746790403414,1.8719,173.01,172.79,2.15448718]
[1746790403817,1.8719,173.01,172.8,20.41059128]
[1746790404121,1.95,173.09,172.85,18.2561041]
[1746790404314,1.9165,173.12,172.9,18.2561041]
[1746790404514,1.9165,173.12,172.91,460.43340732]
[1746790404716,1.9165,173.12,173.02,5.7804]
[1746790404915,1.9165,173.12,172.92,2.15340732]
[1746790405318,1.9165,173.12,172.93,73.567]
[1746790405514,1.9165,173.12,172.94,2.15340732]
[1746790405914,1.9165,173.12,172.95,11.5655]
[1746790406119,1.9181,173.15,172.96,2.15340732]
[1746790406526,7.6943,173.15,173.09,5.7781]
[1746790406725,136.25246695,173.18,172.97,2.15340732]
[1746790407021,136.25246695,173.18,172.98,3.33310732]
[1746790407216,136.25246695,173.18,172.99,4.13650732]
[1746790407417,134.43476695,173.18,173.0,18.2561041]
[1746790407615,134.43476695,173.18,173.01,2.15340732]
[1746790408119,140.20996695,173.18,173.12,5.7771]
[1746790408423,1.8177,173.25,173.12,5.7771]
[1746790408723,1.8177,173.25,173.02,62.0]
[1746790409221,5.7761,173.16,173.1,5.7775]
[1746790409422,5.7761,173.16,173.02,62.0]
[1746790409423,1.8177,173.25,173.02,62.0]
[1746790409625,1.8177,173.25,173.03,458.0]
[1746790410017,1.8177,173.25,173.04,2.145894]
[1746790410217,1.8177,173.25,173.12,5.7771]
[1746790410423,1.8177,173.25,173.03,458.0]
[1746790410724,1.8177,173.25,173.16,5.7757]
[1746790410914,1.8177,173.25,173.04,2.14217589]
[1746790411322,1.8177,173.25,173.05,11.559]
[1746790411521,1.8177,173.25,173.06,2.14217589]
[1746790411721,5.7738,173.23,173.16,5.7757]
[1746790411921,1.8177,173.25,173.05,2.14217589]
[1746790412123,1.8177,173.25,173.04,2.14217589]
[1746790412321,7.5906,173.25,173.04,2.14217589]
[1746790412516,1.8834,173.26,173.04,2.14217589]
[1746790412725,5.7738,173.23,173.17,5.7754]
[1746790413121,1.8834,173.26,173.07,62.0]
[1746790413520,1.8834,173.26,173.08,18.2561041]
[1746790413926,1.8834,173.26,173.03,477.2561041]
[1746790414224,1.8834,173.26,173.03,459.0]
[1746790414620,1.00810472,173.25,173.03,459.0]
[1746790414819,1.8834,173.26,173.03,459.0]
[1746790415018,357.0,173.25,173.03,459.0]
[1746790415324,1.00806751,173.24,173.03,459.0]
[1746790416024,357.0,173.25,173.08,5.7782]
[1746790416219,18.2561041,173.23,173.03,459.0]
[1746790416723,357.0,173.25,173.03,459.0]
[1746790417027,357.0,173.25,173.09,5.778]
[1746790417214,357.0,173.25,173.03,459.0]
[1746790417621,5.7755,173.18,173.13,5.7766]
[1746790417824,357.0,173.25,173.03,459.0]
[1746790418129,5.7755,173.17,173.03,459.0]
[1746790418323,357.0,173.25,173.03,459.0]
[1746790418721,5.7764,173.15,173.11,5.7774]
[1746790419021,357.0,173.25,173.03,459.0]
[1746790419221,5.7762,173.15,173.1,5.7776]
[1746790419524,357.0,173.24,173.03,459.0]
[1746790419723,5.7763,173.15,173.1,5.7775]
[1746790420028,357.0,173.23,173.03,521.0]
[1746790420328,357.0,173.22,173.03,521.0]
[1746790420528,5.7761,173.16,173.03,521.0]
[1746790420731,357.0,173.22,173.03,521.0]
[1746790421231,357.0,173.22,173.03,459.0]
[1746790421731,357.0,173.22,173.04,2.15609017]
[1746790421929,357.0,173.22,173.03,459.0]
[1746790422233,5.7759,173.16,173.12,5.777]
[1746790422734,357.0,173.22,173.03,459.0]
[1746790422931,357.0,173.22,173.04,11.5597]
[1746790423233,357.0,173.22,173.14,5.7762]
[1746790423435,357.0,173.22,173.04,11.5597]
[1746790423732,459.5834,173.26,173.18,5.7749]
[1746790423933,459.5834,173.26,173.06,2.15773646]
[1746790424133,459.5834,173.26,173.07,62.0]
[1746790424438,5.7739,173.22,173.17,5.7753]
[1746790424633,459.5834,173.26,173.08,11.557]
[1746790424833,1.8834,173.26,173.09,2.1576525]
[1746790425332,1.8834,173.26,173.08,11.557]
[1746790425529,5.7735,173.23,173.08,11.557]
[1746790425735,1.8834,173.26,173.08,11.557]
[1746790426637,1.8834,173.26,173.07,62.0]
[1746790427033,5.7743,173.21,173.07,62.0]
[1746790427234,1.8834,173.26,173.07,62.0]
[1746790427533,5.7728,173.25,173.08,2.15447056]
[1746790427736,1.8834,173.26,173.08,2.15447056]
[1746790428037,7.6927,173.3,173.25,5.7726]
[1746790428238,1.9215,173.3,173.11,18.2561041]
[1746790428433,1.9215,173.3,173.12,4.06862668]
[1746790428635,1.9215,173.3,173.12,16.79492668]
[1746790428933,1.868,173.35,173.13,2.15132668]
[1746790429535,1.15340253,173.4,173.17,18.2561041]
[1746790429737,1.15340253,173.4,173.18,463.27426722]
[1746790429944,1.15340253,173.4,173.19,2.14683137]
[1746790430230,5.7688,173.37,173.31,5.7708]
[1746790430439,1.15340253,173.4,173.19,2.14683137]
[1746790430634,1.15340253,173.4,173.22,18.2561041]
[1746790430832,1.15340253,173.4,173.23,2.14683137]
[1746790431032,1.15340253,173.4,173.24,62.0]
[1746790431233,1.15340253,173.4,173.25,1.8555]
[1746790431433,1.15340253,173.4,173.32,5.7703]
[1746790431738,1.15340253,173.4,173.25,1.8555]
[1746790433043,5.7703,173.33,173.27,5.7719]
[1746790433239,1.15340253,173.4,173.18,457.44]
[1746790433445,1.15340253,173.4,173.19,1.8555]
[1746790435253,1.15340253,173.4,173.19,4.00839922]
[1746790435855,1.15340253,173.4,173.27,17.52356254]
[1746790436251,5.7688,173.37,173.27,17.52356254]
[1746790436454,1.15340253,173.4,173.27,17.52356254]
[1746790436654,5.7689,173.37,173.27,17.52356254]
[1746790436964,1.15340253,173.4,173.23,17.52356254]
[1746790437257,5.7708,173.32,173.26,5.7722]
[1746790437450,17.52356254,173.39,173.26,5.7722]
[1746790437652,17.52356254,173.39,173.19,19.37906254]
[1746790437855,5.7702,173.33,173.24,5.7731]
[1746790438047,17.52356254,173.35,173.19,1.8555]
[1746790438252,17.52356254,173.35,173.19,63.8555]
[1746790438456,5.7699,173.34,173.19,63.8555]
[1746790438660,17.52356254,173.35,173.19,63.8555]
[1746790438955,5.7699,173.34,173.19,1.8555]
[1746790439147,17.52356254,173.39,173.19,4.00927765]
[1746790439353,1.15340253,173.4,173.21,17.52356254]
[1746790440260,1.15340253,173.4,173.19,1.8555]
[1746790440559,17.52356254,173.37,173.19,4.01306563]
[1746790440762,17.52356254,173.39,173.19,4.01306563]
[1746790440954,1.15340253,173.4,173.19,4.01306563]
[1746790441150,1.15340253,173.4,173.24,17.52356254]
[1746790441355,1.15340253,173.4,173.25,2.15829499]
[1746790441659,1.15340253,173.4,173.24,17.52356254]
[1746790441958,1.15340253,173.4,173.21,62.0]
[1746790442156,17.52356254,173.38,173.19,1.8555]
[1746790442359,17.52356254,173.34,173.19,1.8555]
[1746790442759,17.52356254,173.34,173.19,4.02219664]
[1746790443159,357.0,173.39,173.19,1.8555]
[1746790443359,17.52356254,173.35,173.19,4.01841856]
[1746790443561,418.86,173.39,173.34,5.7695]
[1746790443762,418.86,173.39,173.21,2.16291856]
[1746790443966,374.52356254,173.39,173.22,2.16291856]
[1746790444162,17.52356254,173.35,173.2,2.16291856]
[1746790444364,1.9218,173.34,173.21,2.16291856]
[1746790444560,5.771,173.31,173.2,2.16291856]
[1746790444766,1.9218,173.34,173.19,4.01841856]
[1746790444965,17.52356254,173.32,173.19,4.01841856]
[1746790445164,17.52356254,173.32,173.19,2.16291856]
[1746790445365,79.10356254,173.32,173.19,2.16291856]
[1746790445563,17.52356254,173.32,173.18,457.44]
[1746790445761,17.52356254,173.32,173.19,2.15667997]
[1746790445963,17.52356254,173.32,173.2,2.15667997]
[1746790446276,17.52356254,173.32,173.19,2.15667997]
[1746790446464,3.7589,173.33,173.2,2.15667997]
[1746790446663,1.8949,173.33,173.21,2.15667997]
[1746790446864,1.8949,173.33,173.22,2.15667997]
[1746790447168,1.8949,173.33,173.23,2.15667997]
[1746790447364,1.8949,173.33,173.24,2.15667997]
[1746790447565,1.8949,173.33,173.25,2.15667997]
[1746790447764,1.15340253,173.4,173.35,5.7695]
[1746790447959,1.15340253,173.4,173.28,17.52356254]
[1746790448166,1.15340253,173.4,173.32,17.52356254]
[1746790448469,1.15340253,173.4,173.39,5.7682]
[1746790448762,1.9643,173.51,173.39,2.15871781]
[1746790448966,80.46474508,173.5,173.4,19.68228035]
[1746790449166,80.46474508,173.5,173.41,2.15871781]
[1746790449359,80.46474508,173.5,173.47,5.7652]
[1746790449556,80.46474508,173.5,173.42,2.15871781]
[1746790449557,80.46474508,173.5,173.43,2.15871781]
[1746790449759,80.46474508,173.5,173.35,61.36]
[1746790449958,80.46474508,173.5,173.36,2.15877687]
[1746790450164,80.46474508,173.5,173.37,2.16011421]
[1746790450364,80.46474508,173.5,173.38,2.16011421]
[1746790450569,80.46474508,173.5,173.38,5.7684]
[1746790450868,17.52356254,173.48,173.34,457.16]
[1746790451070,5.7675,173.41,173.35,2.16863773]
[1746790451268,17.52356254,173.44,173.34,457.16]
[1746790451464,17.52356254,173.44,173.35,2.16901785]
[1746790451672,1.8237,173.46,173.34,457.16]
[1746790451972,1.8237,173.46,173.35,2.16694676]
[1746790452171,1.8237,173.46,173.35,5.7692]
[1746790452475,1.8237,173.46,173.34,457.16]
[1746790452677,5.7698,173.35,173.3,5.7708]
[1746790452870,17.52356254,173.4,173.31,2.16850781]
[1746790453071,17.52356254,173.4,173.28,2.16850781]
[1746790453372,17.52356254,173.4,173.29,2.16847404]
[1746790453571,17.52356254,173.4,173.3,2.16864182]
[1746790453770,5.7706,173.32,173.27,5.7721]
[1746790453971,60.9,173.42,173.28,2.17208421]
[1746790454172,60.9,173.42,173.29,1.15413468]
[1746790454875,357.0,173.43,173.3,2.1705126]
[1746790455175,60.52,173.42,173.29,1.15413468]
[1746790455571,357.0,173.41,173.29,1.15413468]
[1746790455771,18.12536733,173.39,173.25,2.17266043]
[1746790455977,18.12536733,173.39,173.26,2.16977711]
[1746790456172,417.36,173.41,173.27,2.16986115]
[1746790456475,357.0,173.41,173.28,2.16986115]
[1746790456669,357.0,173.41,173.29,2.16891562]
[1746790456875,362.7678,173.41,173.35,5.7692]
[1746790457073,357.0,173.41,173.27,2.16925601]
[1746790457275,60.24,173.42,173.28,2.16925601]
[1746790457475,456.98,173.44,173.29,2.16925601]
[1746790457675,456.98,173.44,173.3,2.16925601]
[1746790457979,1.8237,173.46,173.31,2.16925601]
[1746790458272,1.8237,173.46,173.32,73.68975601]
[1746790458480,456.98,173.52,173.33,2.16925601]
[1746790458679,456.98,173.52,173.34,64.16925601]
[1746790458977,456.98,173.52,173.38,5.7685]
[1746790459282,18.12536733,173.49,173.26,1.1437]
[1746790459467,5.7693,173.36,173.27,2.17070893]
[1746790459770,59.74,173.43,173.25,458.13440115]
[1746790459978,418.5383,173.42,173.26,2.17354624]
[1746790460172,5.7694,173.36,173.27,2.17354624]
[1746790460479,5.7694,173.36,173.25,458.13440115]
[1746790460678,1.8859,173.41,173.26,2.1722898]
[1746790460871,1.9118,173.4,173.25,458.13440115]
[1746790461072,1.9118,173.4,173.32,5.7702]
[1746790461268,1.9118,173.4,173.27,2.17288417]
[1746790461471,1.9118,173.4,173.28,2.17288417]
[1746790461676,5.769,173.37,173.32,5.7704]
[1746790461873,1.9118,173.4,173.29,1.15413468]
[1746790462669,5.7709,173.31,173.29,1.15413468]
[1746790462881,1.9118,173.4,173.29,1.15413468]
[1746790463073,813.96,173.39,173.15,456.96]
[1746790463276,357.0,173.38,173.16,3.33465984]
[1746790463473,357.0,173.38,173.17,2.17965869]
[1746790463673,5.7705,173.32,173.27,5.7721]
[1746790463871,357.0,173.38,173.19,2.17854877]
[1746790464073,357.0,173.38,173.2,2.17854877]
[1746790464275,357.0,173.38,173.21,2.17854877]
[1746790464476,357.0,173.38,173.22,2.17854877]
[1746790464779,357.0,173.38,173.23,2.17854877]
[1746790465080,357.0,173.38,173.24,2.17854877]
[1746790465384,18.12536733,173.36,173.23,1.15453443]
[1746790465882,5.7708,173.32,173.24,2.18221347]
[1746790466180,58.8,173.36,173.25,2.18170396]
[1746790466375,5.7702,173.33,173.26,2.17873707]
[1746790466577,5.7702,173.33,173.23,1.15453443]
[1746790466777,58.8,173.36,173.24,2.18038619]
[1746790466982,58.8,173.36,173.25,2.18114308]
[1746790467177,58.8,173.36,173.26,2.18114308]
[1746790467370,58.8,173.36,173.27,1.1542679]
[1746790469082,58.8,173.36,173.28,2.18366835]
[1746790469282,58.8,173.36,173.27,1.1542679]
[1746790469480,58.8,173.36,173.28,2.18390422]
[1746790469681,58.8,173.36,173.27,1.1542679]
[1746790469877,58.8,173.36,173.3,5.7709]
[1746790470386,5.7701,173.34,173.3,5.7709]
[1746790470580,58.8,173.36,173.27,1.1542679]
[1746790470780,58.8,173.36,173.28,2.18784998]
[1746790470982,5.7696,173.35,173.31,5.7707]
[1746790471289,58.8,173.36,173.27,1.1542679]
[1746790471483,456.96,173.39,173.28,2.18902566]
[1746790471678,1.9118,173.4,173.35,5.7693]
[1746790472186,5.7689,173.37,173.27,1.1542679]
[1746790472386,1.9118,173.4,173.28,2.18734662]
[1746790472681,5.7683,173.39,173.29,2.18734662]
[1746790472886,1.9118,173.4,173.3,2.18734662]
[1746790473082,1.9118,173.4,173.29,1.15413468]
[1746790473589,1.9118,173.4,173.21,515.84]
[1746790473789,5.7704,173.33,173.29,5.7713]
[1746790473983,17.54199691,173.37,173.21,515.84]
[1746790474190,5.7703,173.33,173.29,5.7713]
[1746790474482,17.54199691,173.37,173.21,515.84]
[1746790474687,5.7708,173.32,173.28,5.7716]
[1746790474886,17.54199691,173.37,173.21,515.84]
[1746790475188,58.78,173.38,173.22,17.54199691]
[1746790475393,357.0,173.39,173.29,1.0]
[1746790476690,17.54199691,173.38,173.29,1.0]
[1746790477487,357.0,173.37,173.21,457.06]
[1746790477694,17.54199691,173.3,173.15,1.7961]
[1746790477890,17.54199691,173.3,173.13,458.9792]
[1746790478193,5.7741,173.22,173.19,5.7748]
[1746790478392,3.8668,173.29,173.13,457.04]
[1746790478596,5.7745,173.21,173.13,457.04]
[1746790478792,3.8668,173.29,173.13,457.04]
[1746790479190,17.54199691,173.26,173.08,58.76]
[1746790479691,17.54199691,173.26,173.1,17.54199691]
[1746790479884,17.54199691,173.26,173.11,1.15533475]
[1746790480192,5.7734,173.24,173.11,1.15533475]
[1746790480489,17.54199691,173.26,173.11,1.15533475]
[1746790480490,415.76,173.28,173.11,1.15533475]
[1746790480794,357.0,173.28,173.14,17.54199691]
[1746790480991,457.04,173.36,173.18,17.54199691]
[1746790481195,360.7088,173.39,173.32,5.7705]
[1746790481390,360.7088,173.39,173.22,17.54199691]
[1746790481596,360.7088,173.39,173.2,1.7926]
[1746790481794,360.7088,173.39,173.27,5.7721]
[1746790482096,360.7088,173.39,173.2,1.7926]
[1746790482401,5.7703,173.33,173.2,1.7926]
[1746790482695,3.7088,173.39,173.22,17.54199691]
[1746790482996,5.5353,173.39,173.2,1.7926]
[1746790483195,5.5353,173.39,173.23,17.54199691]
[1746790483398,3.74,173.39,173.27,17.54199691]
[1746790483594,80.46474508,173.42,173.28,1.15420129]
[1746790483994,80.46474508,173.42,173.29,1.8899]
[1746790484399,80.46474508,173.42,173.4,5.7678]
[1746790484798,80.46474508,173.42,173.3,62.0]
[1746790484997,80.46474508,173.42,173.41,5.7675]
[1746790485194,80.46474508,173.42,173.34,2.12708969]
[1746790485403,80.46474508,173.42,173.31,458.9461]
[1746790485404,17.51041557,173.41,173.22,457.14]
[1746790485698,19.34331557,173.41,173.29,2.12933468]
[1746790485897,19.34331557,173.41,173.28,6.92600129]
[1746790486098,5.7708,173.32,173.28,1.15420129]
[1746790486295,19.34331557,173.41,173.28,1.15420129]
[1746790486899,19.34331557,173.41,173.29,2.12851231]
[1746790487095,5.7701,173.34,173.29,5.7712]
[1746790487289,17.51041557,173.38,173.28,1.15420129]
[1746790487494,1.8777,173.37,173.28,1.15420129]
[1746790489102,5.7701,173.34,173.3,5.7708]
[1746790489400,1.8777,173.37,173.28,1.15420129]
[1746790490900,455.9377,173.39,173.28,1.15420129]
[1746790491290,5.7715,173.29,173.28,1.15420129]
[1746790491498,58.68,173.34,173.28,1.15420129]
[1746790491693,1.8439,173.33,173.28,1.15420129]
[1746790491897,1.8439,173.33,173.17,64.2055]
[1746790492197,1.8439,173.33,173.18,3.28828711]
[1746790492400,1.8439,173.33,173.19,2.13341935]
[1746790492697,357.0,173.32,173.18,1.15486776]
[1746790493090,357.0,173.32,173.19,5.7746]
[1746790493290,1.007573,173.31,173.18,1.15486776]
[1746790493499,357.0,173.3,173.18,1.15486776]
[1746790493799,1.007573,173.29,173.18,1.15486776]
[1746790494191,5.7723,173.27,173.22,5.7738]
[1746790494392,358.8158,173.3,173.18,1.15486776]
[1746790494700,5.7722,173.27,173.18,1.15486776]
[1746790494898,358.8158,173.3,173.18,1.15486776]
[1746790495300,58.68,173.29,173.19,2.13057489]
[1746790495502,58.68,173.29,173.2,2.13057489]
[1746790495705,58.68,173.29,173.21,2.13057489]
[1746790496002,58.68,173.29,173.22,2.13057489]
[1746790496204,64.4515,173.29,173.25,5.7725]
[1746790496398,58.68,173.29,173.18,1.15486776]
[1746790496599,58.68,173.29,173.19,2.13381066]
[1746790496796,58.68,173.29,173.2,2.13381066]
[1746790496997,58.68,173.29,173.21,2.13381066]
[1746790497199,58.68,173.29,173.22,2.13381066]
[1746790497392,58.68,173.29,173.18,1.15486776]
[1746790497393,58.68,173.29,173.23,2.13381066]
[1746790497603,1.8158,173.3,173.24,2.13381066]
[1746790497803,1.8158,173.3,173.28,5.7718]
[1746790498293,1.8158,173.3,173.2,2.13633975]
[1746790498499,1.8158,173.3,173.21,2.13633975]
[1746790498698,1.8158,173.3,173.22,2.13633975]
[1746790498901,5.7722,173.27,173.23,5.7734]
[1746790499197,1.8158,173.3,173.18,1.15486776]
[1746790499402,1.8158,173.3,173.19,2.13540102]
[1746790499603,1.8158,173.3,173.2,2.13540102]
[1746790499799,1.8158,173.3,173.21,2.13540102]
[1746790500005,1.8158,173.3,173.18,1.15486776]
[1746790500206,1.8158,173.3,173.19,2.13520626]
[1746790500502,1.8158,173.3,173.2,2.13520626]
[1746790500704,1.8439,173.33,173.21,2.13520626]
[1746790501002,1.8439,173.33,173.22,2.13520626]
[1746790501205,1.8439,173.33,173.23,2.13520626]
[1746790501500,1.8439,173.33,173.24,2.13520626]
[1746790501704,5.7721,173.28,173.18,1.15486776]
[1746790501904,1.8439,173.33,173.19,2.13420484]
[1746790502107,5.7712,173.3,173.26,5.7724]
[1746790502506,1.8439,173.33,173.22,2.13420484]
[1746790502707,1.8439,173.33,173.23,2.1323075]
[1746790502900,1.8439,173.33,173.24,2.13205578]
[1746790503100,1.8439,173.33,173.18,1.15486776]
[1746790503403,1.8439,173.33,173.19,2.13219144]
[1746790503594,1.8439,173.33,173.2,3.28692585]
[1746790503800,1.8439,173.33,173.21,3.28685918]
[1746790504098,357.0,173.35,173.22,2.13219144]
[1746790504297,1.7913,173.38,173.23,60.71219144]
[1746790504501,360.7107,173.42,173.24,3.93219144]
[1746790504702,360.7107,173.42,173.25,13.67769144]
[1746790504902,360.7107,173.42,173.26,3.28652596]
[1746790505098,357.0,173.41,173.27,2.13219144]
[1746790505297,18.12472101,173.38,173.28,2.13219144]
[1746790505502,5.7722,173.27,173.17,1.8]
[1746790505702,58.56,173.33,173.17,1.8]
[1746790505905,5.7713,173.3,173.26,5.7723]